fUSD/lending_fUSD_20251231
["ID","MTS","AMOUNT","RATE_DAILY","PERIOD"]
[400182162,1767173439875,-250.0,0.00013843,2]
[400182164,1767173439885,-16.87170952,0.00013843,2]
[400182167,1767173439898,-264.87614929,0.00013843,2]
[400182173,1767173439953,-18.25214119,0.00013843,2]
[400182175,1767173439963,-195.0,0.00013843,2]
[400182177,1767173439973,-2500.0,0.00013843,2]
[400182179,1767173439983,-2500.0,0.00013843,2]
[400182181,1767173439993,-195.0,0.00013843,2]
[400182183,1767173440003,-636.0,0.00013862,2]
[400182186,1767173440019,-500.0,0.00013862,2]
[400182188,1767173440029,-500.0,0.00013862,2]
[400182190,1767173440039,-572.0,0.00013862,2]
[400182192,1767173440049,-500.0,0.00013862,2]
[400182194,1767173440059,-218.9,0.00013884,2]
[400182196,1767173440069,-1852.42,0.00013907,2]
[400182198,1767173440079,-636.0,0.00013917,2]
[400182200,1767173440089,-500.0,0.00013917,2]
[400182202,1767173440099,-500.0,0.00013917,2]
[400182205,1767173440109,-572.0,0.00013917,2]
[400182207,1767173440119,-500.0,0.00013917,2]
[400182209,1767173440129,-1600.0,0.00013954,2]
[400182211,1767173440139,-636.0,0.00013972,2]
[400182213,1767173440149,-500.0,0.00013972,2]
[400182215,1767173440159,-500.0,0.00013972,2]
[400182217,1767173440169,-572.0,0.00013972,2]
[400182219,1767173440179,-500.0,0.00013972,2]
[400182221,1767173440189,-1582.13,0.00013972,2]
[400182223,1767173440198,-24544.30572807,0.0001399,2]
[400182225,1767173440208,-11523.80099629,0.00014023,2]
[400182227,1767173440218,-636.0,0.00014027,2]
[400182229,1767173440228,-500.0,0.00014027,2]
[400182231,1767173440238,-500.0,0.00014027,2]
[400182233,1767173440248,-572.0,0.00014027,2]
[400182235,1767173440258,-208.3819682,0.00014027,2]
[400182238,1767173440268,-636.0,0.00014082,2]
[400182240,1767173440278,-426.65062607,0.00014082,2]
[400182242,1767173440287,-500.0,0.00014082,2]
[400182244,1767173440297,-572.0,0.00014082,2]
[400182246,1767173440307,-474.82,0.00014092,2]
[400182248,1767173440317,-268.57186089,0.00014117,2]
[400182250,1767173440328,-636.0,0.00014136,2]
[400182252,1767173440338,-500.0,0.00014136,2]
[400182254,1767173440348,-572.0,0.00014136,2]
[400182256,1767173440358,-421.62181602,0.00014149,2]
[400182259,1767173440372,-636.0,0.00014191,2]
[400182261,1767173440382,-500.0,0.00014191,2]
[400182263,1767173440391,-572.0,0.00014191,2]
[400182265,1767173440401,-246.33,0.00014227,2]
[400182267,1767173440411,-636.0,0.00014246,2]
[400182269,1767173440422,-152.10310192,0.00014246,2]
[400182271,1767173440433,-572.0,0.00014246,2]
[400182273,1767173440442,-1582.13,0.00014246,2]
[400182275,1767173440452,-636.0,0.00014301,2]
[400182277,1767173440462,-572.0,0.00014301,2]
[400182280,1767173440472,-1769.4014046,0.00014303,2]
[400182282,1767173440482,-636.0,0.00014356,2]
[400182284,1767173440493,-572.0,0.00014356,2]
[400182286,1767173440503,-3348.00485715,0.0001439,2]
[400182288,1767173440513,-482.9001275,0.00014408,2]
[400182290,1767173440523,-636.0,0.0001441,2]
[400182292,1767173440535,-572.0,0.0001441,2]
[400182294,1767173440545,-636.0,0.00014465,2]
[400182296,1767173440555,-572.0,0.00014465,2]
[400182299,1767173440570,-11523.80099629,0.00014503,2]
[400182301,1767173440580,-636.0,0.0001452,2]
[400182303,1767173440591,-572.0,0.0001452,2]
[400182305,1767173440602,-1582.13,0.0001452,2]
[400182307,1767173440611,-636.0,0.00014575,2]
[400182309,1767173440621,-572.0,0.00014575,2]
[400182311,1767173440632,-268.57186089,0.00014581,2]
[400182313,1767173440642,-636.0,0.00014629,2]
[400182315,1767173440652,-572.0,0.00014629,2]
[400182317,1767173440662,-638.15585513,0.00014684,2]
[400182319,1767173440671,-421.62181602,0.00014699,2]
[400182321,1767173440681,-1582.13,0.00014794,2]
[400182323,1767173440691,-433.0,0.00014874,2]
[400182326,1767173440701,-218.9,0.00014876,2]
[400182328,1767173440711,-11523.80099629,0.00014982,2]
[400182330,1767173440721,-5014.92,0.00014999,2]
[400182332,1767173440735,-2043.16270644,0.00015,2]
[400182334,1767173440746,-5941.81705286,0.00015,2]
[400182337,1767173440756,-22942.37968616,0.00015,2]
[400182339,1767173440766,-268.57186089,0.00015045,2]
[400182341,1767173440776,-1582.13,0.00015068,2]
[400182343,1767173440787,-1082.0,0.00015147,2]
[400182345,1767173440798,-587.0,0.00015147,2]
[400182347,1767173440808,-587.0,0.00015147,2]
[400182349,1767173440819,-2351.0,0.00015227,2]
[400182351,1767173440829,-421.62181602,0.0001525,2]
[400182353,1767173440839,-150.0,0.00015288,2]
[400182355,1767173440849,-150.0,0.00015288,2]
[400182357,1767173440859,-150.0,0.00015288,2]
[400182359,1767173440869,-150.0,0.00015288,2]
[400182361,1767173440878,-150.0,0.00015288,2]
[400182363,1767173440887,-150.44068196,0.00015288,2]
[400182365,1767173440897,-150.55633321,0.00015288,2]
[400182367,1767173440907,-150.0,0.00015288,2]
[400182370,1767173440918,-150.0,0.00015288,2]
[400182372,1767173440927,-150.0,0.00015288,2]
[400182374,1767173440938,-150.0,0.00015288,2]
[400182376,1767173440953,-1517.64,0.000153,2]
[400182378,1767173440963,-211.91,0.0001531,2]
[400182380,1767173440972,-1582.13,0.00015342,2]
[400182382,1767173440982,-151.0,0.00015389,2]
[400182384,1767173440992,-151.0,0.00015389,2]
[400182387,1767173441004,-150.0,0.00015394,2]
[400182389,1767173441014,-506.50076921,0.000154,2]
[400182391,1767173441024,-11523.80099629,0.00015462,2]
[400182393,1767173441033,-3575.0,0.00015497,2]
[400182395,1767173441044,-1330.815,0.00015497,2]
[400182397,1767173441054,-613.0,0.00015497,2]
[400182399,1767173441064,-161.362,0.00015497,2]
[400182401,1767173441074,-150.0,0.000155,2]
[400182403,1767173441084,-268.57186089,0.00015508,2]
[400182405,1767173441093,-150.0,0.0001553,2]
[400182407,1767173441103,-150.0,0.0001553,2]
[400182409,1767173441114,-150.0,0.00015606,2]
[400182412,1767173441124,-1582.13,0.00015616,2]
[400182414,1767173441136,-250.0,0.00015693,2]
[400182416,1767173441147,-1600.0,0.00015699,2]
[400182418,1767173441156,-150.0,0.00015712,2]
[400182420,1767173441166,-150.0,0.00015712,2]
[400182422,1767173441176,-150.0,0.00015773,2]
[400182424,1767173441186,-150.0,0.00015773,2]
[400182426,1767173441196,-421.62181602,0.000158,2]
[400182428,1767173441206,-2045.05502519,0.00015807,2]
[400182431,1767173441216,-150.0,0.00015818,2]
[400182433,1767173441227,-150.0,0.00015854,2]
[400182435,1767173441237,-150.0,0.00015854,2]
[400182437,1767173441247,-1582.13,0.0001589,2]
[400182439,1767173441257,-1467.54721541,0.000159,2]
[400182441,1767173441267,-3613.52511114,0.000159,2]
[400182443,1767173441277,-6121.3852657,0.000159,2]
[400182445,1767173441287,-151.7843949,0.00015916,2]
[400182447,1767173441297,-1017.06190354,0.00015916,2]
[400182449,1767173441307,-2426.47072194,0.00015916,2]
[400182451,1767173441317,-1769.4014046,0.00015921,2]
[400182453,1767173441328,-150.0,0.00015925,2]
[400182455,1767173441338,-1264.0,0.00015939,2]
[400182458,1767173441348,-432.0,0.00015939,2]
[400182460,1767173441358,-1199.0,0.00015939,2]
[400182462,1767173441368,-913.0,0.00015939,2]
[400182464,1767173441378,-11523.80099629,0.00015941,2]
[400182466,1767173441389,-1000.0,0.00015967,2]
[400182468,1767173441399,-1000.0,0.00015967,2]
[400182470,1767173441409,-322.183,0.00015967,2]
[400182472,1767173441418,-268.57186089,0.00015972,2]
[400182474,1767173441428,-500.0,0.00015973,2]
[400182476,1767173441438,-201.41739586,0.00015973,2]
[400182478,1767173441448,-502.72405427,0.00015973,2]
[400182480,1767173441458,-500.64514775,0.00015973,2]
[400182482,1767173441468,-500.0,0.00015973,2]
[400182484,1767173441478,-500.0,0.00015973,2]
[400182487,1767173441488,-500.0,0.00015973,2]
[400182489,1767173441498,-549.89268014,0.00015973,2]
[400182492,1767173441520,-408.61713166,0.00015973,2]
[400182494,1767173441531,-165.68200422,0.00015973,2]
[400182496,1767173441541,-165.76518466,0.00015973,2]
[400182498,1767173441551,-500.0,0.00015973,2]
[400182500,1767173441561,-500.0,0.00015973,2]
[400182503,1767173441571,-500.0,0.00015973,2]
[400182505,1767173441588,-500.0,0.00015973,2]
[400182507,1767173441599,-500.0,0.00015973,2]
[400182509,1767173441609,-500.0,0.00015973,2]
[400182511,1767173441619,-500.0,0.00015973,2]
[400182513,1767173441629,-500.84919333,0.00015973,2]
[400182515,1767173441639,-501.25756972,0.00015973,2]
[400182517,1767173441649,-501.07793065,0.00015973,2]
[400182519,1767173441661,-165.54005178,0.00015973,2]
[400182521,1767173441671,-500.0,0.00015973,2]
[400182524,1767173441681,-501.18328546,0.00015973,2]
[400182526,1767173441692,-500.0,0.00015973,2]
[400182528,1767173441702,-502.0707263,0.00015973,2]
[400182530,1767173441712,-500.0,0.00015973,2]
[400182532,1767173441721,-500.46250375,0.00015973,2]
[400182534,1767173441732,-500.0,0.00015973,2]
[400182536,1767173441742,-217.85001295,0.0001599,2]
[400182538,1767173441752,-151.0,0.00015997,2]
[400182540,1767173441769,-151.0,0.00015997,2]
[400182542,1767173441790,-16965.06386909,0.00016,2]
[400182544,1767173441811,-117599.1752179,0.00016,2]
[400182546,1767173441833,-1978095.05665207,0.00016,4]
[400182548,1767173441854,-150.0,0.00016016,2]
[400182550,1767173441876,-150.0,0.00016016,2]
[400182552,1767173441898,-200.0,0.00016029,2]
[400182555,1767173441915,-150.0,0.00016031,2]
[400182557,1767173441927,-151.78439487,0.00016057,2]
[400182559,1767173441937,-1017.06190349,0.00016113,2]
[400182561,1767173441948,-9999.99,0.00016116,2]
[400182563,1767173441958,-150.0,0.00016137,2]
[400182565,1767173441969,-150.0,0.00016137,2]
[400182567,1767173441979,-150.0,0.00016137,2]
[400182569,1767173441988,-150.0,0.00016137,2]
[400182571,1767173441999,-482.9001275,0.00016154,2]
[400182573,1767173442010,-736.0,0.00016158,2]
[400182575,1767173442019,-1582.13,0.00016164,2]
[400182577,1767173442030,-1000.0,0.00016164,2]
[400182580,1767173442040,-151.78439487,0.00016197,2]
[400182582,1767173442051,-235258.63528811,0.000162,5]
[400182584,1767173442062,-309.04,0.00016207,2]
[400182586,1767173442072,-150.0,0.00016243,2]
[400182588,1767173442081,-150.0,0.00016258,2]
[400182590,1767173442091,-150.0,0.00016258,2]
[400182592,1767173442102,-500.0,0.00016285,2]
[400182594,1767173442111,-500.0,0.00016285,2]
[400182596,1767173442121,-500.0,0.00016285,2]
[400182598,1767173442131,-1017.06190349,0.0001631,2]
[400182600,1767173442141,-151.78439487,0.00016338,2]
[400182602,1767173442151,-150.0,0.00016349,2]
[400182604,1767173442162,-421.62181602,0.0001635,2]
[400182607,1767173442172,-474.82,0.00016355,2]
[400182609,1767173442182,-150.0,0.0001642,2]
[400182611,1767173442192,-150.0,0.0001642,2]
[400182613,1767173442202,-11523.80099629,0.00016421,2]
[400182615,1767173442211,-268.57186089,0.00016436,2]
[400182617,1767173442221,-468.04981383,0.00016437,2]
[400182619,1767173442231,-500.0,0.00016437,2]
[400182621,1767173442240,-500.0,0.00016437,2]
[400182623,1767173442250,-243.30215833,0.00016437,2]
[400182625,1767173442261,-500.0,0.00016437,2]
[400182627,1767173442271,-500.0,0.00016437,2]
[400182629,1767173442281,-500.0,0.00016437,2]
[400182631,1767173442292,-382.48973277,0.00016437,2]
[400182634,1767173442302,-500.0,0.00016437,2]
[400182636,1767173442312,-500.0,0.00016437,2]
[400182638,1767173442327,-500.0,0.00016437,2]
[400182640,1767173442337,-500.0,0.00016437,2]
[400182642,1767173442348,-500.0,0.00016437,2]
[400182645,1767173442357,-500.0,0.00016437,2]
[400182647,1767173442367,-1582.13,0.00016438,2]
[400182649,1767173442377,-500.0,0.00016438,2]
[400182651,1767173442387,-1285.14575916,0.00016438,2]
[400182653,1767173442397,-1285.14575916,0.00016438,2]
[400182655,1767173442407,-1285.14575916,0.00016438,2]
[400182657,1767173442417,-1285.14575916,0.00016438,2]
[400182659,1767173442427,-1285.14575916,0.00016438,2]
[400182661,1767173442437,-1285.14575916,0.00016438,2]
[400182663,1767173442447,-1285.14575916,0.00016438,2]
[400182665,1767173442458,-1285.14575916,0.00016438,2]
[400182667,1767173442468,-1285.14575916,0.00016438,2]
[400182669,1767173442478,-1285.14575916,0.00016438,2]
[400182671,1767173442488,-1285.14575916,0.00016438,2]
[400182674,1767173442498,-1285.14575916,0.00016438,2]
[400182677,1767173442507,-1285.14575916,0.00016438,2]
[400182679,1767173442517,-1285.14575916,0.00016438,2]
[400182681,1767173442527,-1285.14575916,0.00016438,2]
[400182682,1767173442537,-1285.14575916,0.00016438,2]
[400182683,1767173442546,-1285.14575916,0.00016438,2]
[400182684,1767173442556,-1285.14575916,0.00016438,2]
[400182685,1767173442567,-1285.14575916,0.00016438,2]
[400182686,1767173442578,-1285.14575916,0.00016438,2]
[400182687,1767173442588,-1285.14575916,0.00016438,2]
[400182688,1767173442598,-1285.14575916,0.00016438,2]
[400182689,1767173442610,-1285.14575916,0.00016438,2]
[400182690,1767173442620,-1285.14575916,0.00016438,2]
[400182691,1767173442629,-1285.14575916,0.00016438,2]
[400182692,1767173442640,-1285.14575916,0.00016438,2]
[400182694,1767173442651,-1285.14575916,0.00016438,2]
[400182696,1767173442662,-1285.14575916,0.00016438,2]
[400182699,1767173442672,-1285.14575916,0.00016438,2]
[400182701,1767173442687,-1285.14575916,0.00016438,2]
[400182703,1767173442698,-1285.14575916,0.00016438,2]
[400182705,1767173442708,-1285.14575916,0.00016438,2]
[400182707,1767173442718,-1285.14575916,0.00016438,2]
[400182710,1767173442729,-1285.14575916,0.00016438,2]
[400182712,1767173442739,-1285.14575916,0.00016438,2]
[400182714,1767173442751,-1285.14575916,0.00016438,2]
[400182716,1767173442761,-1285.14575916,0.00016438,2]
[400182718,1767173442772,-1285.14575916,0.00016438,2]
[400182720,1767173442782,-1285.14575916,0.00016438,2]
[400182722,1767173442791,-1285.14575916,0.00016438,2]
[400182724,1767173442802,-1285.14575916,0.00016438,2]
[400182726,1767173442812,-1285.14575916,0.00016438,2]
[400182728,1767173442824,-1285.14575916,0.00016438,2]
[400182730,1767173442834,-1285.14575916,0.00016438,2]
[400182732,1767173442844,-1285.14575916,0.00016438,2]
[400182735,1767173442855,-1285.14575916,0.00016438,2]
[400182737,1767173442865,-1285.14575916,0.00016438,2]
[400182739,1767173442875,-1285.14575916,0.00016438,2]
[400182741,1767173442885,-1285.14575916,0.00016438,2]
[400182743,1767173442895,-1285.14575916,0.00016438,2]
[400182745,1767173442905,-1285.14575916,0.00016438,2]
[400182747,1767173442915,-1285.14575916,0.00016438,2]
[400182749,1767173442926,-1285.14575916,0.00016438,2]
[400182780,1767173443205,-1285.14575916,0.00016438,2]
[400182782,1767173443216,-1285.14575916,0.00016438,2]
[400182784,1767173443227,-1285.14575916,0.00016438,2]
[400182787,1767173443236,-1285.14575916,0.00016438,2]
[400182790,1767173443246,-1285.14575916,0.00016438,2]
[400182793,1767173443256,-1285.14575916,0.00016438,2]
[400182796,1767173443267,-1285.14575916,0.00016438,2]
[400182799,1767173443278,-1285.14575916,0.00016438,2]
[400182803,1767173443288,-1285.14575916,0.00016438,2]
[400182806,1767173443298,-1285.14575916,0.00016438,2]
[400182808,1767173443307,-1285.14575916,0.00016438,2]
[400182810,1767173443317,-1285.14575916,0.00016438,2]
[400182812,1767173443326,-1285.14575916,0.00016438,2]
[400182814,1767173443336,-4626.52473297,0.00016438,2]
[400182816,1767173443346,-4626.52473297,0.00016438,2]
[400182818,1767173443355,-4626.52473297,0.00016438,2]
[400182820,1767173443365,-4626.52473297,0.00016438,2]
[400182822,1767173443375,-4626.52473297,0.00016438,2]
[400182823,1767173443385,-4626.52473297,0.00016438,2]
[400182824,1767173443394,-4626.52473297,0.00016438,2]
[400182825,1767173443404,-1734.94677486,0.00016438,2]
[400182826,1767173443414,-12577.61,0.00016438,2]
[400182827,1767173443424,-164.68,0.0001644,2]
[400182828,1767173443434,-150.0,0.00016455,2]
[400182829,1767173443444,-151.78439487,0.00016478,2]
[400182830,1767173443454,-500.0,0.00016493,2]
[400182831,1767173443464,-150.0,0.00016501,2]
[400182832,1767173443473,-150.0,0.00016501,2]
[400182833,1767173443483,-1017.06190349,0.00016506,2]
[400182834,1767173443492,-11667.64,0.00016519,2]
[400182835,1767173443502,-1000.0,0.00016521,2]
[400182836,1767173443511,-1005.70610325,0.00016521,2]
[400182837,1767173443521,-1000.0,0.00016521,2]
[400182838,1767173443531,-1010.05158063,0.00016521,2]
[400182839,1767173443541,-1000.0,0.00016521,2]
[400182840,1767173443550,-500.0,0.00016521,2]
[400182841,1767173443561,-504.52900939,0.00016521,2]
[400182842,1767173443571,-1000.0,0.00016521,2]
[400182843,1767173443583,-500.0,0.00016521,2]
[400182844,1767173443594,-202.31335933,0.00016521,2]
[400182845,1767173443605,-1000.0,0.00016521,2]
[400182846,1767173443616,-1000.0,0.00016521,2]
[400182847,1767173443627,-1000.0,0.00016521,2]
[400182848,1767173443637,-500.73461727,0.00016521,2]
[400182849,1767173443646,-500.0,0.00016548,2]
[400182850,1767173443657,-150.0,0.00016562,2]
[400182851,1767173443667,-150.0,0.00016562,2]
[400182852,1767173443678,-500.0,0.00016602,2]
[400182853,1767173443687,-823.0,0.00016618,2]
[400182854,1767173443698,-573.0,0.00016618,2]
[400182855,1767173443707,-151.78439487,0.00016619,2]
[400182856,1767173443717,-500.0,0.00016657,2]
[400182857,1767173443726,-391.62241139,0.0001666,2]
[400182858,1767173443736,-150.0,0.00016668,2]
[400182859,1767173443745,-211.91,0.0001668,2]
[400182860,1767173443755,-168.0,0.00016695,2]
[400182861,1767173443765,-1017.06190349,0.00016703,2]
[400182862,1767173443775,-500.0,0.00016712,2]
[400182863,1767173443785,-1582.13,0.00016712,2]
[400182864,1767173443794,-150.0,0.00016744,2]
[400182865,1767173443804,-150.0,0.00016744,2]
[400182866,1767173443814,-3292.0,0.00016749,2]
[400182867,1767173443824,-151.78439487,0.00016759,2]
[400182868,1767173443833,-500.0,0.00016767,2]
[400182870,1767173443843,-150.0,0.00016774,2]
[400182871,1767173443853,-10000.0,0.000168,2]
[400182872,1767173443863,-7631.71900392,0.000168,2]
[400182873,1767173443873,-500.0,0.00016822,2]
[400182874,1767173443884,-200.0,0.00016864,2]
[400182875,1767173443894,-24020.3842351,0.00016871,2]
[400182876,1767173443903,-500.0,0.00016876,2]
[400182877,1767173443913,-150.0,0.0001688,2]
[400182878,1767173443923,-3705.02326924,0.0001689,2]
[400182879,1767173443933,-220.76404125,0.0001689,2]
[400182880,1767173443943,-835.54840854,0.0001689,2]
[400182881,1767173443953,-500.0,0.00016892,2]
[400182883,1767173443963,-500.0,0.00016892,2]
[400182885,1767173443972,-500.0,0.00016892,2]
[400182887,1767173443982,-95494.1437003,0.00016893,2]
[400182889,1767173443991,-3705.02326924,0.00016895,2]
[400182891,1767173444001,-835.54840853,0.00016895,2]
[400182893,1767173444010,-421.62181602,0.000169,2]
[400182895,1767173444019,-11523.80099629,0.000169,2]
[400182897,1767173444028,-3705.02326924,0.000169,2]
[400182899,1767173444037,-220.76404125,0.000169,2]
[400182901,1767173444047,-268.57186089,0.000169,2]
[400182903,1767173444056,-1017.06190349,0.000169,2]
[400182905,1767173444066,-835.54840853,0.000169,2]
[400182907,1767173444076,-151.78439487,0.000169,2]
[400182909,1767173444086,-500.0,0.000169,2]
[400182911,1767173444095,-500.0,0.000169,2]
[400182913,1767173444105,-500.0,0.000169,2]
[400182915,1767173444114,-500.0,0.000169,2]
[400182917,1767173444123,-500.0,0.000169,2]
[400182919,1767173444133,-326.1895363,0.000169,2]
[400182921,1767173444143,-8897.54250613,0.000169,2]
[400182923,1767173444152,-5511.0,0.000169,2]
[400182925,1767173444162,-619.17615633,0.00016931,2]
[400182927,1767173444171,-4936.6,0.00016941,2]
[400182929,1767173444181,-206.01,0.00016943,2]
[400182931,1767173444191,-606.0,0.00016959,2]
[400182933,1767173444201,-500.0,0.00016973,2]
[400182935,1767173444211,-500.0,0.00016973,2]
[400182937,1767173444220,-500.0,0.00016973,2]
[400182939,1767173444230,-500.0,0.00016973,2]
[400182941,1767173444239,-550.00207661,0.00016973,2]
[400182943,1767173444248,-500.0,0.00016973,2]
[400182946,1767173444259,-500.60403875,0.00016973,2]
[400182948,1767173444269,-500.0,0.00016973,2]
[400182950,1767173444279,-500.0,0.00016973,2]
[400182952,1767173444288,-500.0,0.00016973,2]
[400182953,1767173444298,-501.00189818,0.00016973,2]
[400182956,1767173444307,-500.0,0.00016973,2]
[400182958,1767173444317,-500.0,0.00016973,2]
[400182960,1767173444327,-500.0,0.00016973,2]
[400182962,1767173444337,-500.0,0.00016973,2]
[400182964,1767173444346,-500.0,0.00016973,2]
[400182966,1767173444356,-500.0,0.00016973,2]
[400182968,1767173444366,-500.0,0.00016973,2]
[400182970,1767173444375,-500.0,0.00016973,2]
[400182972,1767173444384,-162.29676587,0.00016973,2]
[400182974,1767173444394,-162.62949941,0.00016973,2]
[400182976,1767173444404,-500.0,0.00016973,2]
[400182978,1767173444413,-571.16127303,0.00016973,2]
[400182980,1767173444423,-162.50883671,0.00016973,2]
[400182982,1767173444433,-500.0,0.00016973,2]
[400182984,1767173444443,-500.0,0.00016973,2]
[400182986,1767173444452,-500.0,0.00016973,2]
[400182988,1767173444462,-500.0,0.00016973,2]
[400182990,1767173444472,-453.14856339,0.00016973,2]
[400182992,1767173444481,-500.0,0.00016973,2]
[400182994,1767173444491,-427.40368537,0.00016973,2]
[400182996,1767173444500,-160.43301019,0.00016973,2]
[400182998,1767173444510,-160.40696499,0.00016973,2]
[400183000,1767173444519,-519.646537,0.00016973,2]
[400183002,1767173444529,-500.0,0.00016973,2]
[400183004,1767173444539,-160.40025967,0.00016973,2]
[400183006,1767173444550,-500.0,0.00016973,2]
[400183008,1767173444559,-161.33309619,0.00016973,2]
[400183010,1767173444569,-500.0,0.00016973,2]
[400183012,1767173444579,-556.81874578,0.00016973,2]
[400183013,1767173444588,-500.0,0.00016973,2]
[400183014,1767173444598,-501.35455747,0.00016973,2]
[400183015,1767173444608,-500.0,0.00016973,2]
[400183016,1767173444618,-335.11797254,0.00016973,2]
[400183017,1767173444627,-500.0,0.00016973,2]
[400183018,1767173444637,-500.0,0.00016973,2]
[400183019,1767173444647,-640.49953855,0.00016973,2]
[400183020,1767173444657,-500.0,0.00016973,2]
[400183021,1767173444667,-150.1570918,0.00016973,2]
[400183022,1767173444676,-640.9293227,0.00016973,2]
[400183023,1767173444686,-160.43167139,0.00016973,2]
[400183024,1767173444696,-160.4337152,0.00016973,2]
[400183025,1767173444706,-500.0,0.00016973,2]
[400183026,1767173444716,-156.77400144,0.00016973,2]
[400183027,1767173444726,-500.0,0.00016973,2]
[400183028,1767173444736,-160.40600151,0.00016973,2]
[400183029,1767173444745,-500.0,0.00016973,2]
[400183030,1767173444755,-160.43464258,0.00016973,2]
[400183031,1767173444764,-500.0,0.00016973,2]
[400183032,1767173444774,-150.4025269,0.00016973,2]
[400183033,1767173444784,-160.42561905,0.00016973,2]
[400183034,1767173444793,-500.0,0.00016973,2]
[400183035,1767173444803,-500.0,0.00016973,2]
[400183036,1767173444813,-167.17790449,0.00016973,2]
[400183037,1767173444822,-500.0,0.00016973,2]
[400183038,1767173444831,-469.2844286,0.00016973,2]
[400183039,1767173444841,-500.0,0.00016973,2]
[400183040,1767173444850,-207.79365149,0.00016973,2]
[400183041,1767173444860,-500.0,0.00016973,2]
[400183044,1767173444869,-500.0,0.00016973,2]
[400183045,1767173444880,-509.92461485,0.00016973,2]
[400183047,1767173444890,-500.0,0.00016973,2]
[400183049,1767173444900,-500.0,0.00016973,2]
[400183050,1767173444910,-500.0,0.00016973,2]
[400183051,1767173444919,-345.18608284,0.00016973,2]
[400183052,1767173444929,-220.61613602,0.00016973,2]
[400183053,1767173444939,-159.68383532,0.00016973,2]
[400183054,1767173444948,-500.0,0.00016973,2]
[400183055,1767173444958,-500.0,0.00016973,2]
[400183056,1767173444967,-523.82155928,0.00016973,2]
[400183057,1767173444978,-500.0,0.00016973,2]
[400183058,1767173444988,-500.0,0.00016973,2]
[400183059,1767173444997,-506.98216206,0.00016973,2]
[400183060,1767173445006,-500.0,0.00016973,2]
[400183061,1767173445016,-501.7651244,0.00016973,2]
[400183062,1767173445025,-396.18408407,0.00016973,2]
[400183063,1767173445035,-150.0,0.00016973,2]
[400183064,1767173445044,-151.0,0.00016983,2]
[400183065,1767173445054,-1582.13,0.00016986,2]
[400183066,1767173445063,-162.80268362,0.00016986,2]
[400183067,1767173445074,-157.83595805,0.00016986,2]
[400183068,1767173445083,-153.50138107,0.00016986,2]
[400183069,1767173445093,-211.05978879,0.00016986,2]
[400183070,1767173445102,-153.00859182,0.00016986,2]
[400183071,1767173445112,-190.90622458,0.00016986,2]
[400183072,1767173445121,-151.85727785,0.00016986,2]
[400183073,1767173445131,-154.04577029,0.00016986,2]
[400183074,1767173445141,-159.79234637,0.00016986,2]
[400183075,1767173445150,-298531.48,0.00016986,2]
[400183076,1767173445160,-217.85001295,0.00016989,2]
[400183077,1767173445170,-217.85001295,0.0001699,2]
[400183078,1767173445179,-151.0,0.00016997,2]
[400183079,1767173445188,-467.19773594,0.00016999,2]
[400183080,1767173445198,-567.50706892,0.00016999,2]
[400183081,1767173445210,-500.0,0.00016999,2]
[400183082,1767173445219,-500.0,0.00016999,2]
[400183083,1767173445229,-353.55847487,0.00016999,2]
[400183084,1767173445238,-500.0,0.00016999,2]
[400183085,1767173445247,-500.0,0.00016999,2]
[400183086,1767173445258,-500.0,0.00016999,2]
[400183087,1767173445267,-494.3392313,0.00016999,2]
[400183088,1767173445277,-300.0,0.00016999,2]
[400183089,1767173445286,-500.0,0.00016999,2]
[400183090,1767173445295,-500.0,0.00016999,2]
[400183091,1767173445305,-500.0,0.00016999,2]